fUST/lending_fUST_20240603
["ID","MTS","AMOUNT","RATE_DAILY","PERIOD"]
[328444962,1717397445033,-443.90434294,0.00023659,2]
[328444965,1717397445044,-1826.72532254,0.00023659,2]
[328444967,1717397445058,-53614.96617849,0.00023659,2]
[328444969,1717397445067,-7695.17512991,0.0002366,2]
[328444971,1717397445079,-318.41271715,0.0002366,2]
[328445016,1717397445494,-603.98478864,0.0002366,2]
[328445140,1717397446640,-598.30034209,0.0002366,2]
[328445469,1717397618204,154.98450155,9.999e-05,2]
[328445470,1717397621746,154.98450155,9.999e-05,2]
[328445471,1717397621778,284.27772922,0.000137,2]
[328445472,1717397635677,659.34508716,9.999e-05,2]
[328445478,1717397881777,305.3780539,9.999e-05,2]
[328445479,1717397890886,272.29500778,9.999e-05,2]
[328445483,1717398239423,154.98450155,9.999e-05,2]
[328445484,1717398266340,154.98450155,9.999e-05,2]
[328445485,1717398266780,1901.95956528,9.999e-05,2]
[328445486,1717398294034,3500.0,0.0002,3]
[328445487,1717398317896,154.98450155,9.999e-05,2]
[328445488,1717398326025,353.62,0.00019985,3]
[328445489,1717398336860,294.68,0.00019985,3]
[328445490,1717398347659,884.08,0.00019985,3]
[328445492,1717398415537,19414.11273788,9.999e-05,2]
[328445498,1717398484287,659.34508716,9.999e-05,2]
[328445501,1717398486317,284.27772922,0.000137,2]
[328445503,1717398502259,589.36,0.00019985,3]
[328445504,1717398515147,1016.41987301,0.00019995,7]
[328445505,1717398529382,305.3780539,9.999e-05,2]
[328445508,1717398572601,508.2099365,0.00019995,7]
[328445509,1717398575973,272.29500778,9.999e-05,2]
[328445521,1717398632653,-251.96907033,0.00016865,2]
[328445524,1717398632663,-778.28075793,0.00016865,2]
[328445527,1717398632675,-1422.75302778,0.00016959,2]
[328445528,1717398632686,-6487.85606995,0.00016959,2]
[328445529,1717398632696,-155.20735315,0.00016961,2]
[328445530,1717398632705,-272.29500778,0.00016961,2]
[328445531,1717398632715,-50242.62719436,0.00016961,2]
[328445533,1717398632724,-408.24318335,0.00016962,2]
[328445535,1717398632734,-24900.0,0.00016965,2]
[328445537,1717398632744,-292.0207383,0.0001787,2]
[328445539,1717398632753,-658.80929082,0.00017994,2]
[328445541,1717398632762,-283.9766323,0.00017994,2]
[328445542,1717398632771,-4943.36853488,0.00017997,2]
[328445543,1717398632780,-897.68664681,0.00018171,2]
[328445544,1717398632789,-155.39009532,0.00018172,2]
[328445545,1717398634332,254.10496825,0.00019995,7]
[328445571,1717398639392,-2034.77313841,0.00016864,2]
[328445573,1717398639402,-96.57897497,0.00018172,2]
[328445575,1717398639412,-778.28075789,0.00018584,2]
[328445577,1717398639422,-575.26023399,0.000189,2]
[328445578,1717398639432,-164.79285,0.00019178,2]
[328445579,1717398639442,-251.96907029,0.00019478,2]
[328445580,1717398639452,-516.07826445,0.0001999,2]
[328445581,1717398639467,-1510.72303914,0.0001999,2]
[328445582,1717398639480,-2410.81270733,0.0001999,2]
[328445583,1717398639492,-341.51697593,0.0001999,2]
[328445584,1717398639504,-1372.37173156,0.0001999,2]
[328445585,1717398639515,-1212.58743557,0.0001999,2]
[328445586,1717398639525,-155.20146606,0.00019991,2]
[328445587,1717398639535,-721.41919944,0.00019992,2]
[328445588,1717398639548,-558.86033942,0.00019992,2]
[328445589,1717398639558,-1391.13531743,0.00019994,2]
[328445590,1717398639568,-155.2325052,0.00019994,2]
[328445591,1717398639578,-300.0,0.00019994,2]
[328445592,1717398639588,-421.91688565,0.00019994,2]
[328445593,1717398639598,-155.31937045,0.00019995,2]
[328445594,1717398639608,-1016.95784664,0.00019995,2]
[328445628,1717398642445,-2939.24571115,0.00019995,2]
[328445630,1717398642458,-5620.25781594,0.00019995,2]
[328445632,1717398642468,-29727.28621171,0.00019995,2]
[328445634,1717398642479,-10403.96942792,0.00019995,2]
[328445636,1717398642490,-345.46993967,0.00019995,2]
[328445758,1717398644297,-19023.48038052,0.00019995,2]
[328445760,1717398644306,-151.0,0.00019995,2]
[328445762,1717398644316,-151.0,0.00019995,2]
[328445763,1717398644326,-461.8019537,0.0002,2]
[328445764,1717398644335,-778.28075789,0.00020304,2]
[328445765,1717398644345,-409.881453,0.00020695,2]
[328445766,1717398644354,-251.96907029,0.00020785,2]
[328445767,1717398644363,-2070.87543186,0.00021,2]
[328445768,1717398644373,-166.461261,0.00021153,2]
[328445769,1717398644382,-2766.90906454,0.00021917,7]
[328445771,1717398644391,-1629.29,0.00021917,2]
[328445773,1717398644400,-500.0,0.00021917,2]
[328445774,1717398644410,-772.13,0.00021917,2]
[328445776,1717398644419,-1524.56,0.00021917,2]
[328445778,1717398644429,-500.0,0.00021917,2]
[328445780,1717398644438,-500.0,0.00021917,2]
[328445781,1717398644447,-502.37691636,0.00021917,2]
[328445782,1717398644456,-500.0,0.00021917,2]
[328445783,1717398644466,-2181.39,0.00021917,2]
[328445784,1717398644475,-500.0,0.00021917,2]
[328445785,1717398644484,-914.03,0.00021917,2]
[328445786,1717398644494,-500.0,0.00021917,2]
[328445787,1717398644503,-500.0,0.00021917,2]
[328445788,1717398644512,-500.0,0.00021917,2]
[328445789,1717398644522,-500.0,0.00021917,2]
[328445790,1717398644531,-835.88,0.00021917,2]
[328445791,1717398644540,-502.21324698,0.00021917,2]
[328445792,1717398644550,-503.49007718,0.00021917,2]
[328445793,1717398644559,-151.0,0.00021917,2]
[328445794,1717398644568,-196.034005,0.00021917,2]
[328445795,1717398644577,-151.0,0.00021917,2]
[328445796,1717398644587,-1400.02,0.00021917,2]
[328445797,1717398644596,-151.0,0.00021917,2]
[328445798,1717398644605,-500.0,0.00021917,2]
[328445799,1717398644615,-3435.43,0.00021917,2]
[328445800,1717398644624,-151.0,0.00021917,2]
[328445801,1717398644633,-259.402794,0.00021917,2]
[328445802,1717398644642,-151.0,0.00021917,2]
[328445803,1717398644652,-151.0,0.00021917,2]
[328445804,1717398644661,-151.0,0.00021917,2]
[328445805,1717398644670,-263.80876876,0.00021917,2]
[328445806,1717398644837,-151.0,0.00021917,2]
[328445807,1717398644848,-500.0,0.00021917,2]
[328445808,1717398644858,-500.0,0.00021917,2]
[328445809,1717398644867,-4024.28,0.00021917,2]
[328445810,1717398644876,-500.0,0.00021917,2]
[328445811,1717398644886,-500.0,0.00021917,2]
[328445812,1717398644896,-500.0,0.00021917,2]
[328445813,1717398644906,-560.3201051,0.00021917,2]
[328445814,1717398644916,-508.60693508,0.00021917,2]
[328445815,1717398644925,-1524.51,0.00021917,2]
[328445816,1717398644936,-151.0,0.00021917,2]
[328445817,1717398644945,-151.0,0.00021917,2]
[328445818,1717398644954,-1864.61,0.00021917,2]
[328445819,1717398644964,-280.53344054,0.00021917,2]
[328445820,1717398644977,-501.60104573,0.00021917,2]
[328445821,1717398644989,-4212.06,0.00021917,2]
[328445822,1717398644998,-957.69392081,0.00021917,2]
[328445844,1717398646776,-34536.65450258,0.00019994,2]
[328445846,1717398646786,-1299.14607919,0.00021917,2]
[328445848,1717398646796,-775.11,0.00021917,2]
[328445850,1717398646805,-4894.85,0.00021917,2]
[328445851,1717398646815,-803.86,0.00021917,2]
[328445852,1717398646824,-505.34596641,0.00021917,2]
[328445853,1717398646833,-2597.1,0.00021917,2]
[328445854,1717398646842,-1874.38,0.00021917,2]
[328445855,1717398646852,-500.0,0.00021917,2]
[328445856,1717398646861,-501.95763412,0.00021917,2]
[328445857,1717398646870,-500.0,0.00021917,2]
[328445858,1717398646879,-1104.8,0.00021917,2]
[328445859,1717398646888,-892.71,0.00021917,2]
[328445860,1717398646897,-500.0,0.00021917,2]
[328445861,1717398646906,-152.785277,0.00021917,2]
[328445862,1717398646915,-633.83,0.00021917,2]
[328445863,1717398646923,-1317.51,0.00021917,2]
[328445864,1717398646933,-515.74,0.00021917,2]
[328445865,1717398646942,-837.77,0.00021917,2]
[328445866,1717398646952,-960.03,0.00021917,2]
[328445867,1717398646963,-283.504208,0.00021917,2]
[328445868,1717398646974,-283.504208,0.00021917,2]
[328445869,1717398646984,-283.504208,0.00021917,2]
[328445870,1717398646993,-283.504208,0.00021917,2]
[328445871,1717398647002,-283.504208,0.00021917,2]
[328445872,1717398647011,-283.504208,0.00021917,2]
[328445873,1717398647022,-905.75,0.00021917,2]
[328445874,1717398647032,-778.28075789,0.00022023,2]
[328445875,1717398647042,-251.96907029,0.00022091,2]
[328445876,1717398647053,-1629.29,0.00022191,2]
[328445877,1717398647063,-500.0,0.00022191,2]
[328445878,1717398647073,-772.13,0.00022191,2]
[328445879,1717398647082,-1524.56,0.00022191,2]
[328445880,1717398647093,-500.0,0.00022191,2]
[328445881,1717398647102,-500.0,0.00022191,2]
[328445882,1717398647112,-500.0,0.00022191,2]
[328445883,1717398647121,-2181.39,0.00022191,2]
[328445884,1717398647130,-500.0,0.00022191,2]
[328445885,1717398647139,-914.03,0.00022191,2]
[328445886,1717398647148,-500.0,0.00022191,2]
[328445887,1717398647157,-500.0,0.00022191,2]
[328445888,1717398647166,-500.0,0.00022191,2]
[328445889,1717398647176,-500.0,0.00022191,2]
[328445890,1717398647185,-835.88,0.00022191,2]
[328445891,1717398647197,-151.0,0.00022191,2]
[328445892,1717398647207,-151.0,0.00022191,2]
[328445893,1717398647217,-1400.02,0.00022191,2]
[328445894,1717398647226,-151.0,0.00022191,2]
[328445895,1717398647236,-151.0,0.00022191,2]
[328445896,1717398647245,-500.0,0.00022191,2]
[328445897,1717398647256,-3435.43,0.00022191,2]
[328445898,1717398647266,-151.0,0.00022191,2]
[328445899,1717398647275,-151.0,0.00022191,2]
[328445900,1717398647284,-151.0,0.00022191,2]
[328445901,1717398647294,-151.0,0.00022191,2]
[328445902,1717398647305,-500.0,0.00022191,2]
[328445903,1717398647315,-500.0,0.00022191,2]
[328445904,1717398647324,-4024.28,0.00022191,2]
[328445905,1717398647334,-500.0,0.00022191,2]
[328445906,1717398647345,-500.0,0.00022191,2]
[328445907,1717398647355,-500.0,0.00022191,2]
[328445908,1717398647364,-1524.51,0.00022191,2]
[328445909,1717398647374,-151.0,0.00022191,2]
[328445910,1717398647383,-151.0,0.00022191,2]
[328445911,1717398647394,-1864.61,0.00022191,2]
[328445912,1717398647403,-4212.06,0.00022191,2]
[328445913,1717398647413,-2256.84,0.00022191,2]
[328445914,1717398647424,-775.11,0.00022191,2]
[328445915,1717398647434,-4485.48208884,0.00022191,2]
[328445916,1717398647449,-409.36791116,0.00022191,2]
[328445917,1717398647459,-803.86,0.00022191,2]
[328445918,1717398647470,-2597.1,0.00022191,2]
[328445919,1717398647479,-1874.38,0.00022191,2]
[328445920,1717398647487,-560.94686212,0.00022191,2]
[328445921,1717398647497,-1104.8,0.00022191,2]
[328445922,1717398647506,-500.0,0.00022191,2]
[328445923,1717398647515,-892.71,0.00022191,2]
[328445924,1717398647525,-500.0,0.00022191,2]
[328445925,1717398647534,-1317.51,0.00022191,2]
[328445926,1717398647545,-633.83,0.00022191,2]
[328445927,1717398647555,-515.74,0.00022191,2]
[328445928,1717398647564,-837.77,0.00022191,2]
[328445929,1717398647574,-960.03,0.00022191,2]
[328445930,1717398647583,-283.504208,0.00022191,2]
[328445931,1717398647592,-283.504208,0.00022191,2]
[328445932,1717398647603,-283.504208,0.00022191,2]
[328445933,1717398647613,-283.504208,0.00022191,2]
[328445934,1717398647622,-283.504208,0.00022191,2]
[328445935,1717398647630,-283.504208,0.00022191,2]
[328445936,1717398647639,-905.75,0.00022191,2]
[328445937,1717398647648,-1629.29,0.00022465,2]
[328445938,1717398647658,-500.0,0.00022465,2]
[328445939,1717398647667,-772.13,0.00022465,2]
[328445940,1717398647676,-1524.56,0.00022465,2]
[328445941,1717398647685,-500.0,0.00022465,2]
[328445942,1717398647694,-500.0,0.00022465,2]
[328445943,1717398647703,-500.0,0.00022465,2]
[328445944,1717398647713,-1058.34888312,0.00022465,2]
[328445946,1717398666462,944.85794937,0.00015,2]
[328445951,1717398700947,1099.5217014,0.00015,2]
[328445953,1717398765906,923.23452736,0.00014,2]
[328445954,1717398942874,1138.74722317,0.0001,2]
[328445955,1717398956873,525.70697832,0.00014382,2]
[328445957,1717399291863,1000.0,0.00025,90]
[328445958,1717399292713,1383.45453227,0.00019178,7]
[328445959,1717399342568,272.29500778,9.999e-05,2]
[328445962,1717399411508,691.72726613,0.00019178,7]
[328445963,1717399413311,959.868499,0.0001588,2]
[328445964,1717399419858,-2034.77313841,0.00016053,2]
[328445965,1717399419880,-19289.36611798,0.00016053,2]
[328445966,1717399419901,-1518.10725,0.00016054,2]
[328445967,1717399419922,-1174.1652311,0.00016083,2]
[328445968,1717399419944,-250.0,0.00016097,2]
[328445969,1717399419965,-275.3142072,0.000165,2]
[328445970,1717399419986,-671.49662807,0.00016877,2]
[328445971,1717399420007,-22786.77742724,0.00016914,2]
[328445972,1717399531574,345.86363306,0.00019994,7]
[328445974,1717399652080,172.93181653,0.00019178,7]
[328445976,1717399769855,172.93181653,0.00019758,7]
[328445986,1717399833180,-272.29500778,0.00016435,2]
[328445987,1717399833190,-1138.74722317,0.00016436,2]
[328445988,1717399833199,-3452.69513021,0.00016913,2]
[328445989,1717399833211,-6126.73589889,0.00016913,2]
[328445990,1717399833221,-2113.22257276,0.00016914,2]
[328445991,1717399833230,-250.0,0.00017114,2]
[328445992,1717399833239,-394.3509307,0.00017275,2]
[328445993,1717399833248,-1715.2985261,0.00017713,2]
[328445994,1717399833257,-10476.6863812,0.00017898,2]
[328445995,1717399833266,-925.07294038,0.00018217,2]
[328445996,1717399833275,-932.82123139,0.000189,2]
[328445997,1717399833284,-587.55954957,0.00019076,2]
[328445998,1717399833293,-284.84040617,0.00019078,2]
[328445999,1717399833303,-1017.17930299,0.00019078,2]
[328446000,1717399833312,-2111.50910737,0.00019157,2]
[328446001,1717399833321,-6847.5977998,0.00019176,2]
[328446002,1717399833333,-5611.44137531,0.00019176,2]
[328446003,1717399833345,-1732.66965131,0.00019176,2]
[328446004,1717399833354,-276.08398684,0.00019176,2]
[328446005,1717399833363,-1098.8007356,0.00019177,2]
[328446006,1717399833373,-9107.31320809,0.00019177,2]
[328446007,1717399833383,-500.0,0.00019178,2]
[328446008,1717399833392,-500.0,0.00019178,2]
[328446009,1717399833401,-500.0,0.00019178,2]
[328446010,1717399833412,-500.0,0.00019178,2]
[328446011,1717399833421,-500.0,0.00019178,2]
[328446012,1717399833430,-500.0,0.00019178,2]
[328446013,1717399833439,-500.0,0.00019178,2]
[328446014,1717399833448,-500.0,0.00019178,2]
[328446015,1717399833458,-500.0,0.00019178,2]
[328446016,1717399833467,-500.0,0.00019178,2]
[328446017,1717399833477,-500.0,0.00019178,2]
[328446018,1717399833486,-500.0,0.00019178,2]
[328446019,1717399833495,-500.0,0.00019178,2]
[328446020,1717399833505,-500.0,0.00019178,2]
[328446021,1717399833514,-500.0,0.00019178,2]
[328446022,1717399833524,-500.0,0.00019178,2]
[328446023,1717399833533,-500.0,0.00019178,2]
[328446024,1717399833543,-500.0,0.00019178,2]
[328446025,1717399833552,-500.0,0.00019178,2]
[328446026,1717399833561,-330.83442462,0.00019178,2]
[328446027,1717399833570,-500.0,0.00019178,2]
[328446028,1717399833580,-500.0,0.00019178,2]
[328446029,1717399833589,-500.0,0.00019178,2]
[328446030,1717399833598,-500.0,0.00019178,2]
[328446031,1717399833607,-500.0,0.00019178,2]
[328446032,1717399833616,-500.0,0.00019178,2]
[328446033,1717399833625,-500.0,0.00019178,2]
[328446034,1717399833634,-500.0,0.00019178,2]
[328446035,1717399833643,-500.0,0.00019178,2]
[328446036,1717399833652,-1122.38139519,0.00019178,2]
[328446037,1717399833661,-1122.38139519,0.00019178,2]
[328446038,1717399833671,-1122.38139519,0.00019178,2]
[328446039,1717399833680,-1122.38139519,0.00019178,2]
[328446040,1717399833689,-1122.38139519,0.00019178,2]
[328446041,1717399833698,-1122.38139519,0.00019178,2]
[328446042,1717399833708,-779.37198497,0.00019178,2]
[328446084,1717399838885,-343.00941022,0.00019178,2]
[328446085,1717399838895,-1122.38139519,0.00019178,2]
[328446086,1717399838904,-1122.38139519,0.00019178,2]
[328446087,1717399838913,-1122.38139519,0.00019178,2]
[328446088,1717399838923,-1122.38139519,0.00019178,2]
[328446089,1717399838932,-780.01467782,0.00019178,2]
[328446144,1717399844933,-342.36671737,0.00019178,2]
[328446147,1717399844943,-1122.38139519,0.00019178,2]
[328446149,1717399844953,-1122.38139519,0.00019178,2]
[328446151,1717399844962,-1122.38139519,0.00019178,2]
[328446153,1717399844971,-1122.38139519,0.00019178,2]
[328446154,1717399844981,-1122.38139519,0.00019178,2]
[328446156,1717399844990,-1122.38139519,0.00019178,2]
[328446158,1717399844999,-1122.38139519,0.00019178,2]
[328446160,1717399845009,-1122.38139519,0.00019178,2]
[328446162,1717399845018,-1122.38139519,0.00019178,2]
[328446164,1717399845027,-1122.38139519,0.00019178,2]
[328446166,1717399845037,-1122.38139519,0.00019178,2]
[328446168,1717399845047,-1122.38139519,0.00019178,2]
[328446170,1717399845057,-1122.38139519,0.00019178,2]
[328446172,1717399845066,-1122.38139519,0.00019178,2]
[328446174,1717399845076,-1122.38139519,0.00019178,2]
[328446176,1717399845086,-1122.38139519,0.00019178,2]
[328446178,1717399845095,-1122.38139519,0.00019178,2]
[328446180,1717399845105,-1122.38139519,0.00019178,2]
[328446182,1717399845114,-1122.38139519,0.00019178,2]
[328446184,1717399845124,-1122.38139519,0.00019178,2]
[328446186,1717399845134,-1122.38139519,0.00019178,2]
[328446188,1717399845143,-1122.38139519,0.00019178,2]
[328446190,1717399845153,-1122.38139519,0.00019178,2]
[328446192,1717399845162,-1122.38139519,0.00019178,2]
[328446194,1717399845171,-1122.38139519,0.00019178,2]
[328446196,1717399845181,-1122.38139519,0.00019178,2]
[328446198,1717399845190,-1122.38139519,0.00019178,2]
[328446200,1717399845200,-1122.38139519,0.00019178,2]
[328446202,1717399845209,-1122.38139519,0.00019178,2]
[328446204,1717399845218,-1122.38139519,0.00019178,2]
[328446206,1717399845228,-1122.38139519,0.00019178,2]
[328446208,1717399845238,-1122.38139519,0.00019178,2]
[328446210,1717399845247,-1122.38139519,0.00019178,2]
[328446212,1717399845256,-1122.38139519,0.00019178,2]
[328446214,1717399845265,-1122.38139519,0.00019178,2]
[328446216,1717399845275,-1122.38139519,0.00019178,2]
[328446218,1717399845284,-1122.38139519,0.00019178,2]
[328446220,1717399845294,-1122.38139519,0.00019178,2]
[328446222,1717399845303,-4359.23899716,0.00019178,2]
[328446224,1717399845312,-4359.23899716,0.00019178,2]
[328446226,1717399845322,-4359.23899716,0.00019178,2]
[328446228,1717399845331,-4359.23899716,0.00019178,2]
[328446230,1717399845345,-4359.23899716,0.00019178,2]
[328446232,1717399845354,-4359.23899716,0.00019178,2]
[328446234,1717399845364,-4359.23899716,0.00019178,2]
[328446236,1717399845373,-4359.23899716,0.00019178,2]
[328446238,1717399845383,-4359.23899716,0.00019178,2]
[328446240,1717399845392,-4359.23899716,0.00019178,2]
[328446242,1717399845402,-4359.23899716,0.00019178,2]
[328446244,1717399845411,-500.0,0.00019178,2]
[328446246,1717399845422,-500.0,0.00019178,2]
[328446248,1717399845432,-500.0,0.00019178,2]
[328446249,1717399845452,-359.38593117,0.00019178,2]
[328446250,1717399845463,-500.0,0.00019178,2]
[328446251,1717399845473,-500.0,0.00019178,2]
[328446252,1717399845484,-500.0,0.00019178,2]
[328446253,1717399845494,-258.8607761,0.00019178,2]
[328446254,1717399845504,-490.0,0.00019178,2]
[328446255,1717399845514,-500.0,0.00019178,2]
[328446256,1717399845524,-600.25136976,0.00019178,2]
[328446257,1717399845534,-500.0,0.00019178,2]
[328446258,1717399845544,-446.13251034,0.00019178,2]
[328446259,1717399845554,-500.0,0.00019178,2]
[328446260,1717399845564,-500.0,0.00019178,2]
[328446261,1717399845574,-500.0,0.00019178,2]
[328446262,1717399845584,-500.0,0.00019178,2]
[328446264,1717399845594,-372.82329408,0.00019178,2]
[328446266,1717399845604,-312.85361189,0.00019178,2]
[328446268,1717399845614,-500.0,0.00019178,2]
[328446270,1717399845624,-500.0,0.00019178,2]
[328446272,1717399845633,-500.0,0.00019178,2]
[328446273,1717399845643,-500.0,0.00019178,2]
[328446274,1717399845652,-500.0,0.00019178,2]
[328446275,1717399845662,-500.0,0.00019178,2]
[328446276,1717399845672,-500.0,0.00019178,2]
[328446278,1717399845682,-500.0,0.00019178,2]
[328446280,1717399845692,-500.0,0.00019178,2]
[328446282,1717399845702,-430.24722739,0.00019178,2]
[328446284,1717399845712,-500.0,0.00019178,2]
[328446286,1717399845722,-500.0,0.00019178,2]
[328446288,1717399845732,-500.0,0.00019178,2]
[328446290,1717399845742,-500.0,0.00019178,2]
[328446292,1717399845752,-500.0,0.00019178,2]
[328446294,1717399845761,-500.0,0.00019178,2]
[328446296,1717399845771,-500.0,0.00019178,2]
[328446298,1717399845780,-500.0,0.00019178,2]
[328446300,1717399845789,-500.0,0.00019178,2]
[328446302,1717399845799,-500.0,0.00019178,2]
[328446304,1717399845808,-500.0,0.00019178,2]
[328446306,1717399845818,-500.0,0.00019178,2]
[328446308,1717399845827,-155.464486,0.00019178,2]
[328446311,1717399845837,-151.0,0.00019178,2]
[328446312,1717399845846,-151.0,0.00019178,2]
[328446313,1717399845856,-151.0,0.00019178,2]
[328446314,1717399845867,-168.501189,0.00019178,2]
[328446316,1717399845876,-168.501189,0.00019178,2]
[328446318,1717399845886,-151.0,0.00019178,2]
[328446320,1717399845895,-151.0,0.00019178,2]
[328446322,1717399845905,-151.0,0.00019178,2]
[328446323,1717399845914,-152.951282,0.00019178,2]
[328446325,1717399845923,-311.818421,0.00019178,2]
[328446326,1717399845932,-311.818421,0.00019178,2]
[328446327,1717399845941,-311.818421,0.00019178,2]
[328446328,1717399845950,-311.818421,0.00019178,2]
[328446329,1717399845960,-151.0,0.00019178,2]
[328446330,1717399845969,-151.0,0.00019178,2]
[328446331,1717399845979,-151.0,0.00019178,2]
[328446332,1717399845989,-211.031687,0.00019178,2]
[328446333,1717399845998,-151.0,0.00019178,2]
[328446334,1717399846007,-151.0,0.00019178,2]
[328446335,1717399846016,-151.0,0.00019178,2]
[328446336,1717399846026,-151.0,0.00019178,2]
[328446337,1717399846036,-151.0,0.00019178,2]
[328446338,1717399846045,-151.0,0.00019178,2]
[328446339,1717399846054,-151.0,0.00019178,2]
[328446340,1717399846064,-151.0,0.00019178,2]
[328446341,1717399846073,-151.0,0.00019178,2]
[328446342,1717399846083,-151.0,0.00019178,2]
[328446343,1717399846092,-164.877956,0.00019178,2]
[328446344,1717399846102,-176.047408,0.00019178,2]
[328446345,1717399846111,-176.047408,0.00019178,2]
[328446346,1717399846121,-176.047408,0.00019178,2]
[328446347,1717399846131,-176.047408,0.00019178,2]
[328446348,1717399846140,-892.18544893,0.00019178,2]
[328446349,1717399846149,-892.18544893,0.00019178,2]
[328446350,1717399846159,-892.18544893,0.00019178,2]
[328446351,1717399846168,-892.18544893,0.00019178,2]
[328446352,1717399846177,-892.18544893,0.00019178,2]
[328446353,1717399846187,-892.18544893,0.00019178,2]
[328446354,1717399846196,-892.18544893,0.00019178,2]
[328446355,1717399846205,-892.18544893,0.00019178,2]
[328446356,1717399846215,-892.18544893,0.00019178,2]
[328446357,1717399846224,-892.18544893,0.00019178,2]
[328446358,1717399846233,-892.18544893,0.00019178,2]
[328446359,1717399846243,-892.18544893,0.00019178,2]
[328446360,1717399846252,-892.18544893,0.00019178,2]
[328446361,1717399846261,-892.18544893,0.00019178,2]
[328446362,1717399846270,-892.18544893,0.00019178,2]
[328446363,1717399846282,-892.18544893,0.00019178,2]
[328446364,1717399846292,-892.18544893,0.00019178,2]
[328446365,1717399846301,-892.18544893,0.00019178,2]
[328446366,1717399846310,-892.18544893,0.00019178,2]
[328446368,1717399846319,-892.18544893,0.00019178,2]
[328446369,1717399846328,-892.18544893,0.00019178,2]
[328446370,1717399846340,-892.18544893,0.00019178,2]
[328446371,1717399846350,-892.18544893,0.00019178,2]
[328446372,1717399846359,-892.18544893,0.00019178,2]
[328446373,1717399846368,-892.18544893,0.00019178,2]
[328446374,1717399846378,-892.18544893,0.00019178,2]
[328446375,1717399846387,-892.18544893,0.00019178,2]
[328446376,1717399846396,-892.18544893,0.00019178,2]
[328446377,1717399846406,-892.18544893,0.00019178,2]
[328446378,1717399846415,-892.18544893,0.00019178,2]
[328446379,1717399846426,-892.18544893,0.00019178,2]
[328446380,1717399846435,-892.18544893,0.00019178,2]
[328446381,1717399846445,-151.0,0.00019178,2]
[328446382,1717399846454,-151.0,0.00019178,2]
[328446383,1717399846463,-166.3623464,0.00019178,2]
[328446384,1717399846472,-284.84040617,0.00019486,2]
[328446385,1717399846481,-168.501189,0.00019758,2]
[328446386,1717399846492,-168.501189,0.00019758,2]
[328446387,1717399846501,-1017.17930295,0.00019763,2]
[328446388,1717399846510,-284.84040617,0.00019894,2]
[328446389,1717399846519,-899.9893843,0.00019993,2]
[328446390,1717399846528,-7249.54641603,0.00019994,2]
[328446391,1717399846537,-151.0,0.00019994,2]
[328446392,1717399846547,-151.0,0.00019994,2]
[328446393,1717399846557,-1017.17930295,0.00020448,2]
[328446394,1717399846566,-587.55954951,0.00020479,2]
[328446395,1717399846577,-2070.87543186,0.00021,2]
[328446396,1717399846587,-1017.17930295,0.00021132,2]
[328446397,1717399846596,-1017.17930295,0.00021817,2]
[328446398,1717399846605,-587.55954951,0.00021883,2]
[328446399,1717399846615,-3000.0,0.00021916,2]
[328446400,1717399846624,-3000.0,0.00021916,2]
[328446401,1717399846633,-3000.0,0.00021916,2]
[328446402,1717399846643,-2648.4384981,0.00021916,2]
[328446403,1717399846652,-151.0,0.00021916,2]
[328446404,1717399846661,-311.818421,0.00021916,2]
[328446405,1717399846671,-151.0,0.00021916,2]
[328446406,1717399846680,-151.0,0.00021916,2]
[328446407,1717399846689,-151.0,0.00021916,2]
[328446408,1717399846699,-151.0,0.00021916,2]
[328446411,1717399846709,-151.0,0.00021916,2]
[328446412,1717399846719,-176.047408,0.00021916,2]
[328446413,1717399846729,-176.047408,0.00021916,2]
[328446415,1717399846740,-254.10496825,0.00021917,7]
[328446417,1717399846750,-170.09208796,0.00021917,2]